[Event "Titled Tuesday Blitz June 20 Late 2023"]
[White "ArchibaldCerveza29"]
[Black "Chessadiction1990"]
[WhiteElo "2449"]
[BlackElo "2218"]
[Result "1-0"]
[Round "2"]
[TimeControl "180+2"]
[Date "2023.06.20"]
[WhiteClock "0:00:15"]
[BlackClock "0:00:00"]
[Board "175"]

1. e4 {[%clk 0:03:00]}  c5 {[%clk 0:02:59]} 2. c3 {[%clk 0:02:59]}  Nf6 {[%clk 0:02:58]} 3. e5 {[%clk 0:02:58]}  Nd5 {[%clk 0:02:59]} 4. d4 {[%clk 0:02:59]}  cxd4 {[%clk 0:02:57]} 5. Nf3 {[%clk 0:03:00]}  Nc6 {[%clk 0:02:56]} 6. Bc4 {[%clk 0:03:01]}  Nb6 {[%clk 0:02:55]} 7. Bb3 {[%clk 0:03:01]}  d5 {[%clk 0:02:49]} 8. exd6 {[%clk 0:03:02]}  Qxd6 {[%clk 0:02:48]} 9. O-O {[%clk 0:03:02]}  e6 {[%clk 0:02:43]} 10. cxd4 {[%clk 0:03:02]}  Be7 {[%clk 0:02:43]} 11. Nc3 {[%clk 0:03:02]}  a6 {[%clk 0:02:37]} 12. Re1 {[%clk 0:03:02]}  O-O {[%clk 0:02:36]} 13. Qe2 {[%clk 0:02:57]}  Bd7 {[%clk 0:01:53]} 14. Be3 {[%clk 0:02:51]}  Rfd8 {[%clk 0:01:46]} 15. Ne4 {[%clk 0:02:32]}  Qc7 {[%clk 0:01:44]} 16. Rac1 {[%clk 0:02:32]}  Rac8 {[%clk 0:01:36]} 17. Ne5 {[%clk 0:02:17]}  Be8 {[%clk 0:01:28]} 18. Ng3 {[%clk 0:01:21]}  Nd5 {[%clk 0:01:12]} 19. Nh5 {[%clk 0:01:11]}  g6 {[%clk 0:00:50]} 20. Bxd5 {[%clk 0:00:49]}  Rxd5 {[%clk 0:00:49]} 21. Nf4 {[%clk 0:00:49]}  Rdd8 {[%clk 0:00:26]} 22. h3 {[%clk 0:00:21]}  Nxd4 {[%clk 0:00:19]} 23. Bxd4 {[%clk 0:00:21]}  Qxc1 {[%clk 0:00:18]} 24. Rxc1 {[%clk 0:00:21]}  Rxc1+ {[%clk 0:00:18]} 25. Kh2 {[%clk 0:00:22]}  Rxd4 {[%clk 0:00:18]} 26. Nfd3 {[%clk 0:00:21]}  Rc8 {[%clk 0:00:13]} 27. Nf3 {[%clk 0:00:21]}  Rdd8 {[%clk 0:00:09]} 28. g3 {[%clk 0:00:20]}  Bb5 {[%clk 0:00:09]} 29. Nfe1 {[%clk 0:00:21]}  Bb4 {[%clk 0:00:08]} 30. Qe4 {[%clk 0:00:21]}  Bxe1 {[%clk 0:00:07]} 31. Nxe1 {[%clk 0:00:19]}  Bc6 {[%clk 0:00:04]} 32. Qe3 {[%clk 0:00:19]}  Rd5 {[%clk 0:00:04]} 33. g4 {[%clk 0:00:19]}  Rcd8 {[%clk 0:00:03]} 34. Ng2 {[%clk 0:00:17]}  Rd3 {[%clk 0:00:03]} 35. Qe5 {[%clk 0:00:15]}  Bxg2 {[%clk 0:00:00]} 36. Kxg2 {[%clk 0:00:15]} 1-0


[Site "https://www.chess.com"]

[Event "Titled Tuesday Blitz June 20 Late 2023"]
[White "KSho99"]
[Black "Seletsky, Grigory"]
[BlackFideId "14112191"]
[WhiteElo "2216"]
[BlackElo "2491"]
[Result "0-1"]
[Round "2"]
[TimeControl "180+2"]
[Date "2023.06.20"]
[WhiteClock "0:00:45"]
[BlackClock "0:01:03"]
[Board "176"]

1. d4 {[%clk 0:03:00]}  c5 {[%clk 0:02:59]} 2. d5 {[%clk 0:03:00]}  e5 {[%clk 0:03:00]} 3. Nc3 {[%clk 0:02:59]}  d6 {[%clk 0:03:01]} 4. e4 {[%clk 0:03:00]}  Nf6 {[%clk 0:03:01]} 5. Bb5+ {[%clk 0:02:53]}  Nbd7 {[%clk 0:03:00]} 6. a4 {[%clk 0:02:52]}  Be7 {[%clk 0:03:01]} 7. Nf3 {[%clk 0:02:51]}  O-O {[%clk 0:03:01]} 8. h3 {[%clk 0:02:49]}  Ne8 {[%clk 0:03:01]} 9. g4 {[%clk 0:02:48]}  g6 {[%clk 0:03:01]} 10. Bh6 {[%clk 0:02:46]}  Ng7 {[%clk 0:03:01]} 11. Bd3 {[%clk 0:02:40]}  Nf6 {[%clk 0:03:01]} 12. Nd2 {[%clk 0:02:29]}  Kh8 {[%clk 0:03:02]} 13. f3 {[%clk 0:02:19]}  Ng8 {[%clk 0:03:02]} 14. Be3 {[%clk 0:02:19]}  Bh4+ {[%clk 0:03:01]} 15. Ke2 {[%clk 0:02:16]}  f5 {[%clk 0:02:59]} 16. gxf5 {[%clk 0:02:16]}  gxf5 {[%clk 0:02:58]} 17. Qg1 {[%clk 0:02:16]}  f4 {[%clk 0:02:45]} 18. Bf2 {[%clk 0:02:16]}  Nh5 {[%clk 0:02:45]} 19. Nf1 {[%clk 0:02:10]}  Nh6 {[%clk 0:02:43]} 20. Bxh4 {[%clk 0:02:08]}  Qxh4 {[%clk 0:02:41]} 21. Qf2 {[%clk 0:02:08]}  Qe7 {[%clk 0:02:32]} 22. h4 {[%clk 0:01:55]}  Bd7 {[%clk 0:02:29]} 23. Bb5 {[%clk 0:01:53]}  Rg8 {[%clk 0:02:27]} 24. Bxd7 {[%clk 0:01:50]}  Qxd7 {[%clk 0:02:27]} 25. Kd3 {[%clk 0:01:47]}  b6 {[%clk 0:02:17]} 26. b3 {[%clk 0:01:40]}  a6 {[%clk 0:02:17]} 27. Rg1 {[%clk 0:01:35]}  Rxg1 {[%clk 0:02:11]} 28. Qxg1 {[%clk 0:01:36]}  Rg8 {[%clk 0:02:11]} 29. Qf2 {[%clk 0:01:35]}  b5 {[%clk 0:02:10]} 30. axb5 {[%clk 0:01:34]}  axb5 {[%clk 0:02:11]} 31. Ne2 {[%clk 0:01:21]}  Qh3 {[%clk 0:01:54]} 32. Ng1 {[%clk 0:01:02]}  Qh1 {[%clk 0:01:42]} 33. Nd2 {[%clk 0:00:57]}  Rg2 {[%clk 0:01:37]} 34. Qf1 {[%clk 0:00:56]}  Ng3 {[%clk 0:01:29]} 35. Ra8+ {[%clk 0:00:53]}  Kg7 {[%clk 0:01:27]} 36. Qa1 {[%clk 0:00:53]}  Qxg1 {[%clk 0:01:19]} 37. Qa7+ {[%clk 0:00:50]}  Kg6 {[%clk 0:01:12]} 38. Qe7 {[%clk 0:00:45]}  Qd4# {[%clk 0:01:03]} 0-1


[Site "https://www.chess.com"]

[Event "Titled Tuesday Blitz June 20 Late 2023"]
[White "Vila Dupla, Aurelio"]
[Black "SergioMoralesG"]
[WhiteFideId "2203383"]
[WhiteElo "2009"]
[BlackElo "2446"]
[Result "0-1"]
[Round "2"]
[TimeControl "180+2"]
[Date "2023.06.20"]
[WhiteClock "0:00:00"]
[BlackClock "0:00:05"]
[Board "177"]

1. Nf3 {[%clk 0:03:00]}  c5 {[%clk 0:02:59]} 2. c4 {[%clk 0:02:59]}  Nc6 {[%clk 0:02:58]} 3. Nc3 {[%clk 0:03:00]}  g6 {[%clk 0:02:58]} 4. e3 {[%clk 0:03:00]}  Bg7 {[%clk 0:02:56]} 5. d4 {[%clk 0:03:00]}  d6 {[%clk 0:02:44]} 6. dxc5 {[%clk 0:02:49]}  Bxc3+ {[%clk 0:02:21]} 7. bxc3 {[%clk 0:02:49]}  dxc5 {[%clk 0:02:20]} 8. Qxd8+ {[%clk 0:02:40]}  Nxd8 {[%clk 0:02:16]} 9. e4 {[%clk 0:02:37]}  h6 {[%clk 0:01:44]} 10. h3 {[%clk 0:02:33]}  Be6 {[%clk 0:01:41]} 11. Be3 {[%clk 0:02:31]}  b6 {[%clk 0:01:41]} 12. a4 {[%clk 0:02:30]}  Nc6 {[%clk 0:01:35]} 13. Be2 {[%clk 0:02:22]}  Nf6 {[%clk 0:01:34]} 14. Nd2 {[%clk 0:02:17]}  O-O-O {[%clk 0:01:29]} 15. O-O {[%clk 0:02:12]}  g5 {[%clk 0:01:27]} 16. f3 {[%clk 0:02:09]}  Rd7 {[%clk 0:01:22]} 17. Nb3 {[%clk 0:02:09]}  a5 {[%clk 0:01:19]} 18. Rab1 {[%clk 0:02:00]}  Rhd8 {[%clk 0:01:17]} 19. Rb2 {[%clk 0:01:57]}  Nh5 {[%clk 0:00:45]} 20. Nd2 {[%clk 0:01:34]}  Ng3 {[%clk 0:00:37]} 21. Re1 {[%clk 0:01:34]}  Nxe2+ {[%clk 0:00:29]} 22. Rxe2 {[%clk 0:01:34]}  Kc7 {[%clk 0:00:28]} 23. Nb1 {[%clk 0:01:28]}  Rd1+ {[%clk 0:00:27]} 24. Kf2 {[%clk 0:01:27]}  Bxc4 {[%clk 0:00:25]} 25. Red2 {[%clk 0:01:26]}  R1xd2+ {[%clk 0:00:20]} 26. Nxd2 {[%clk 0:01:21]}  Be6 {[%clk 0:00:20]} 27. Nb1 {[%clk 0:01:21]}  Ne5 {[%clk 0:00:20]} 28. Rd2 {[%clk 0:01:15]}  Rxd2+ {[%clk 0:00:15]} 29. Nxd2 {[%clk 0:01:12]}  Nd3+ {[%clk 0:00:15]} 30. Ke2 {[%clk 0:01:03]}  Nb2 {[%clk 0:00:16]} 31. f4 {[%clk 0:01:03]}  f6 {[%clk 0:00:15]} 32. fxg5 {[%clk 0:01:02]}  fxg5 {[%clk 0:00:15]} 33. h4 {[%clk 0:01:01]}  gxh4 {[%clk 0:00:15]} 34. Bxh6 {[%clk 0:01:00]}  Nxa4 {[%clk 0:00:15]} 35. Kd3 {[%clk 0:00:59]}  h3 {[%clk 0:00:13]} 36. gxh3 {[%clk 0:00:58]}  Bxh3 {[%clk 0:00:13]} 37. Nf3 {[%clk 0:00:55]}  Nb2+ {[%clk 0:00:11]} 38. Kc2 {[%clk 0:00:52]}  Nc4 {[%clk 0:00:11]} 39. Nd2 {[%clk 0:00:48]}  Nxd2 {[%clk 0:00:11]} 40. Bxd2 {[%clk 0:00:47]}  a4 {[%clk 0:00:10]} 41. c4 {[%clk 0:00:43]}  Be6 {[%clk 0:00:09]} 42. Kd3 {[%clk 0:00:42]}  Kc6 {[%clk 0:00:09]} 43. Bc1 {[%clk 0:00:42]}  Bf7 {[%clk 0:00:07]} 44. Ba3 {[%clk 0:00:42]}  Kd6 {[%clk 0:00:08]} 45. Ke3 {[%clk 0:00:38]}  Bg6 {[%clk 0:00:08]} 46. Bb2 {[%clk 0:00:35]}  Bf7 {[%clk 0:00:08]} 47. Kd3 {[%clk 0:00:34]}  Bh5 {[%clk 0:00:08]} 48. Ba3 {[%clk 0:00:32]}  Bd1 {[%clk 0:00:08]} 49. Bb2 {[%clk 0:00:31]}  Bb3 {[%clk 0:00:08]} 50. Kc3 {[%clk 0:00:30]}  Ba2 {[%clk 0:00:08]} 51. Kd3 {[%clk 0:00:27]}  Bb1+ {[%clk 0:00:08]} 52. Ke3 {[%clk 0:00:28]}  Kc6 {[%clk 0:00:08]} 53. Kf4 {[%clk 0:00:25]}  b5 {[%clk 0:00:07]} 54. cxb5+ {[%clk 0:00:24]}  Kxb5 {[%clk 0:00:08]} 55. Ke3 {[%clk 0:00:24]}  Kb4 {[%clk 0:00:08]} 56. e5 {[%clk 0:00:20]}  a3 {[%clk 0:00:08]} 57. Ba1 {[%clk 0:00:20]}  Kb3 {[%clk 0:00:08]} 58. Kd2 {[%clk 0:00:20]}  e6 {[%clk 0:00:08]} 59. Bc3 {[%clk 0:00:18]}  Bf5 {[%clk 0:00:06]} 60. Ba1 {[%clk 0:00:18]}  Ka2 {[%clk 0:00:05]} 61. Bc3 {[%clk 0:00:00]}  Kb1 {[%clk 0:00:05]} 0-1


[Site "https://www.chess.com"]

[Event "Titled Tuesday Blitz June 20 Late 2023"]
[White "Kaplan, Avi Harrison"]
[Black "Gardezi, Arsal"]
[WhiteFideId "30934559"]
[BlackFideId "30949521"]
[WhiteElo "1983"]
[BlackElo "1906"]
[Result "1-0"]
[Round "2"]
[TimeControl "180+2"]
[Date "2023.06.20"]
[WhiteClock "0:02:13"]
[BlackClock "0:02:09"]
[Board "180"]

1. a3 {[%clk 0:02:55]}  a5 {[%clk 0:02:56]} 2. h3 {[%clk 0:02:56]}  b6 {[%clk 0:02:54]} 3. c4 {[%clk 0:02:54]}  Bb7 {[%clk 0:02:54]} 4. Nf3 {[%clk 0:02:52]}  h5 {[%clk 0:02:53]} 5. Nc3 {[%clk 0:02:52]}  e6 {[%clk 0:02:52]} 6. d4 {[%clk 0:02:51]}  d5 {[%clk 0:02:49]} 7. cxd5 {[%clk 0:02:50]}  exd5 {[%clk 0:02:49]} 8. Bg5 {[%clk 0:02:48]}  Be7 {[%clk 0:02:49]} 9. Bxe7 {[%clk 0:02:47]}  Qxe7 {[%clk 0:02:50]} 10. e3 {[%clk 0:02:48]}  Nf6 {[%clk 0:02:50]} 11. Bd3 {[%clk 0:02:48]}  Nbd7 {[%clk 0:02:47]} 12. Rc1 {[%clk 0:02:47]}  c6 {[%clk 0:02:41]} 13. O-O {[%clk 0:02:39]}  O-O {[%clk 0:02:39]} 14. Ng5 {[%clk 0:02:36]}  g6 {[%clk 0:02:37]} 15. Qf3 {[%clk 0:02:32]}  c5 {[%clk 0:02:33]} 16. Nb5 {[%clk 0:02:21]}  Rac8 {[%clk 0:02:24]} 17. Qg3 {[%clk 0:02:17]}  Kg7 {[%clk 0:02:20]} 18. Nd6 {[%clk 0:02:13]}  Rb8 {[%clk 0:02:09]} 19. Nf5+ {[%clk 0:02:13]} 1-0


[Site "https://www.chess.com"]

[Event "Titled Tuesday Blitz June 20 Late 2023"]
[White "Powell, Paul"]
[Black "Ai, Evan"]
[WhiteFideId "2005840"]
[BlackFideId "2094770"]
[WhiteElo "2166"]
[BlackElo "1963"]
[Result "0-1"]
[Round "2"]
[TimeControl "180+2"]
[Date "2023.06.20"]
[WhiteClock "0:00:06"]
[BlackClock "0:01:35"]
[Board "181"]

1. d4 {[%clk 0:03:00]}  Nf6 {[%clk 0:02:59]} 2. Nf3 {[%clk 0:02:59]}  e6 {[%clk 0:02:59]} 3. Bf4 {[%clk 0:02:59]}  d5 {[%clk 0:03:00]} 4. e3 {[%clk 0:02:59]}  c5 {[%clk 0:02:59]} 5. c3 {[%clk 0:02:58]}  Nc6 {[%clk 0:03:00]} 6. Bd3 {[%clk 0:02:57]}  Nh5 {[%clk 0:02:58]} 7. Bg5 {[%clk 0:02:56]}  f6 {[%clk 0:02:58]} 8. Bh4 {[%clk 0:02:55]}  cxd4 {[%clk 0:02:58]} 9. exd4 {[%clk 0:02:55]}  Nf4 {[%clk 0:02:54]} 10. Bf1 {[%clk 0:02:53]}  Bd6 {[%clk 0:02:51]} 11. Bg3 {[%clk 0:02:52]}  Ng6 {[%clk 0:02:51]} 12. Bxd6 {[%clk 0:02:48]}  Qxd6 {[%clk 0:02:52]} 13. Nbd2 {[%clk 0:02:47]}  O-O {[%clk 0:02:46]} 14. Be2 {[%clk 0:02:39]}  e5 {[%clk 0:02:39]} 15. dxe5 {[%clk 0:02:36]}  fxe5 {[%clk 0:02:40]} 16. O-O {[%clk 0:02:35]}  e4 {[%clk 0:02:35]} 17. Nd4 {[%clk 0:02:33]}  Nxd4 {[%clk 0:02:27]} 18. cxd4 {[%clk 0:02:33]}  Nf4 {[%clk 0:02:28]} 19. g3 {[%clk 0:02:02]}  Bh3 {[%clk 0:02:17]} 20. Bg4 {[%clk 0:01:39]}  Bxf1 {[%clk 0:02:13]} 21. Nxf1 {[%clk 0:01:38]}  Nd3 {[%clk 0:02:10]} 22. f4 {[%clk 0:01:33]}  Qb4 {[%clk 0:02:03]} 23. Qd2 {[%clk 0:01:27]}  Qxd4+ {[%clk 0:02:03]} 24. Qe3 {[%clk 0:01:27]}  Qxb2 {[%clk 0:02:02]} 25. Rd1 {[%clk 0:01:23]}  Rae8 {[%clk 0:01:54]} 26. Rd2 {[%clk 0:01:16]}  Qb4 {[%clk 0:01:45]} 27. Rg2 {[%clk 0:00:59]}  d4 {[%clk 0:01:45]} 28. Qd2 {[%clk 0:01:00]}  Qxd2 {[%clk 0:01:39]} 29. Rxd2 {[%clk 0:00:52]}  g6 {[%clk 0:01:37]} 30. Be2 {[%clk 0:00:42]}  Nc1 {[%clk 0:01:37]} 31. Bc4+ {[%clk 0:00:41]}  Kh8 {[%clk 0:01:35]} 32. Rxd4 {[%clk 0:00:06]}  e3 {[%clk 0:01:35]} 0-1


[Site "https://www.chess.com"]

[Event "Titled Tuesday Blitz June 20 Late 2023"]
[White "Hartikainen, Jarmo"]
[Black "Fiedorek, Michal"]
[WhiteFideId "503134"]
[BlackFideId "1199528"]
[WhiteElo "2159"]
[BlackElo "2135"]
[Result "0-1"]
[Round "2"]
[TimeControl "180+2"]
[Date "2023.06.20"]
[WhiteClock "0:00:00"]
[BlackClock "0:00:06"]
[Board "182"]

1. e4 {[%clk 0:03:00]}  c6 {[%clk 0:02:54]} 2. d4 {[%clk 0:03:00]}  g6 {[%clk 0:02:54]} 3. Nc3 {[%clk 0:02:59]}  d5 {[%clk 0:02:54]} 4. f3 {[%clk 0:02:55]}  Bg7 {[%clk 0:02:54]} 5. Be3 {[%clk 0:02:55]}  Nf6 {[%clk 0:02:53]} 6. Be2 {[%clk 0:02:52]}  O-O {[%clk 0:02:53]} 7. Qd2 {[%clk 0:02:48]}  dxe4 {[%clk 0:02:52]} 8. fxe4 {[%clk 0:02:48]}  Ng4 {[%clk 0:02:52]} 9. Bxg4 {[%clk 0:02:47]}  Bxg4 {[%clk 0:02:52]} 10. Nf3 {[%clk 0:02:47]}  Bxf3 {[%clk 0:02:51]} 11. gxf3 {[%clk 0:02:42]}  e5 {[%clk 0:02:51]} 12. O-O-O {[%clk 0:02:38]}  Qh4 {[%clk 0:02:36]} 13. d5 {[%clk 0:02:07]}  cxd5 {[%clk 0:02:36]} 14. Nxd5 {[%clk 0:02:07]}  Nc6 {[%clk 0:02:24]} 15. Bg5 {[%clk 0:01:48]}  Qh3 {[%clk 0:02:22]} 16. c3 {[%clk 0:01:08]}  Qxf3 {[%clk 0:02:17]} 17. Rde1 {[%clk 0:01:01]}  b5 {[%clk 0:01:46]} 18. Rhf1 {[%clk 0:00:58]}  Qh3 {[%clk 0:01:45]} 19. Nf6+ {[%clk 0:00:49]}  Kh8 {[%clk 0:01:44]} 20. Rf2 {[%clk 0:00:24]}  b4 {[%clk 0:01:41]} 21. Re3 {[%clk 0:00:21]}  Qe6 {[%clk 0:01:15]} 22. Qd5 {[%clk 0:00:20]}  bxc3 {[%clk 0:01:09]} 23. bxc3 {[%clk 0:00:19]}  h6 {[%clk 0:00:39]} 24. Bh4 {[%clk 0:00:14]}  g5 {[%clk 0:00:29]} 25. Nh5 {[%clk 0:00:08]}  gxh4 {[%clk 0:00:20]} 26. Nxg7 {[%clk 0:00:08]}  Kxg7 {[%clk 0:00:18]} 27. Rg2+ {[%clk 0:00:09]}  Kh8 {[%clk 0:00:18]} 28. Qd1 {[%clk 0:00:08]}  Rg8 {[%clk 0:00:14]} 29. Rxg8+ {[%clk 0:00:04]}  Rxg8 {[%clk 0:00:15]} 30. Qh5 {[%clk 0:00:04]}  Qg6 {[%clk 0:00:13]} 31. Qxg6 {[%clk 0:00:04]}  Rxg6 {[%clk 0:00:11]} 32. Kb2 {[%clk 0:00:04]}  Rg2+ {[%clk 0:00:11]} 33. Kb3 {[%clk 0:00:05]}  Rxh2 {[%clk 0:00:11]} 34. a4 {[%clk 0:00:05]}  h3 {[%clk 0:00:11]} 35. Rd3 {[%clk 0:00:03]}  Rh1 {[%clk 0:00:09]} 36. Kc4 {[%clk 0:00:03]}  h2 {[%clk 0:00:09]} 37. Rh3 {[%clk 0:00:03]}  Kg7 {[%clk 0:00:09]} 38. Kc5 {[%clk 0:00:03]}  Na5 {[%clk 0:00:08]} 39. Kd5 {[%clk 0:00:02]}  Rd1+ {[%clk 0:00:08]} 40. Kxe5 {[%clk 0:00:03]}  h1=Q {[%clk 0:00:08]} 41. Rg3+ {[%clk 0:00:03]}  Kh7 {[%clk 0:00:08]} 42. c4 {[%clk 0:00:03]}  Qe1 {[%clk 0:00:08]} 43. Rg4 {[%clk 0:00:02]}  Nxc4+ {[%clk 0:00:08]} 44. Kf6 {[%clk 0:00:02]}  Rd6+ {[%clk 0:00:08]} 45. Ke7 {[%clk 0:00:01]}  Re6+ {[%clk 0:00:08]} 46. Kf8 {[%clk 0:00:02]}  h5 {[%clk 0:00:06]} 47. Rg7+ {[%clk 0:00:02]}  Kh6 {[%clk 0:00:07]} 48. Rg8 {[%clk 0:00:02]}  Ne5 {[%clk 0:00:04]} 49. Rh8+ {[%clk 0:00:03]}  Kg5 {[%clk 0:00:05]} 50. Rg8+ {[%clk 0:00:03]}  Kh4 {[%clk 0:00:06]} 51. Rh8 {[%clk 0:00:00]}  Qf2 {[%clk 0:00:06]} 0-1


[Site "https://www.chess.com"]

[Event "Titled Tuesday Blitz June 20 Late 2023"]
[White "KorolDimitriy75"]
[Black "Winkels, Marcel"]
[BlackFideId "1003887"]
[WhiteElo "2424"]
[BlackElo "1900"]
[Result "1-0"]
[Round "2"]
[TimeControl "180+2"]
[Date "2023.06.20"]
[WhiteClock "0:00:10"]
[BlackClock "0:00:00"]
[Board "183"]

1. d4 {[%clk 0:03:00]}  Nf6 {[%clk 0:02:58]} 2. c4 {[%clk 0:03:00]}  g6 {[%clk 0:02:58]} 3. Nc3 {[%clk 0:03:00]}  Bg7 {[%clk 0:02:58]} 4. e4 {[%clk 0:03:00]}  d6 {[%clk 0:02:58]} 5. Nf3 {[%clk 0:03:01]}  O-O {[%clk 0:02:58]} 6. Be2 {[%clk 0:03:02]}  Na6 {[%clk 0:02:58]} 7. O-O {[%clk 0:03:01]}  e5 {[%clk 0:02:58]} 8. Re1 {[%clk 0:03:02]}  Qe7 {[%clk 0:02:48]} 9. Bf1 {[%clk 0:02:56]}  c6 {[%clk 0:02:45]} 10. Rb1 {[%clk 0:02:53]}  Nh5 {[%clk 0:02:43]} 11. b4 {[%clk 0:02:49]}  Nc7 {[%clk 0:02:40]} 12. a4 {[%clk 0:02:35]}  f5 {[%clk 0:02:39]} 13. d5 {[%clk 0:02:12]}  f4 {[%clk 0:02:28]} 14. Ba3 {[%clk 0:02:07]}  Bg4 {[%clk 0:02:18]} 15. Be2 {[%clk 0:02:01]}  Rad8 {[%clk 0:02:13]} 16. Qb3 {[%clk 0:01:55]}  cxd5 {[%clk 0:02:02]} 17. cxd5 {[%clk 0:01:31]}  g5 {[%clk 0:01:59]} 18. b5 {[%clk 0:01:19]}  b6 {[%clk 0:01:57]} 19. Rbc1 {[%clk 0:01:12]}  h6 {[%clk 0:01:53]} 20. Na2 {[%clk 0:00:55]}  Nf6 {[%clk 0:01:47]} 21. Nd2 {[%clk 0:00:35]}  Bxe2 {[%clk 0:01:45]} 22. Rxe2 {[%clk 0:00:36]}  g4 {[%clk 0:01:45]} 23. Ree1 {[%clk 0:00:30]}  h5 {[%clk 0:01:38]} 24. Rc6 {[%clk 0:00:26]}  Bh6 {[%clk 0:01:34]} 25. Nc4 {[%clk 0:00:21]}  Nce8 {[%clk 0:01:27]} 26. Qb4 {[%clk 0:00:20]}  f3 {[%clk 0:01:11]} 27. g3 {[%clk 0:00:19]}  Qh7 {[%clk 0:01:01]} 28. Nxd6 {[%clk 0:00:18]}  Nxd6 {[%clk 0:00:54]} 29. Rxd6 {[%clk 0:00:19]}  Rxd6 {[%clk 0:00:52]} 30. Qxd6 {[%clk 0:00:19]}  Nxe4 {[%clk 0:00:52]} 31. Qxe5 {[%clk 0:00:18]}  Ng5 {[%clk 0:00:47]} 32. Bxf8 {[%clk 0:00:16]}  Nh3+ {[%clk 0:00:41]} 33. Kf1 {[%clk 0:00:15]}  Bxf8 {[%clk 0:00:42]} 34. Qe6+ {[%clk 0:00:14]}  Kh8 {[%clk 0:00:40]} 35. Qe4 {[%clk 0:00:14]}  Qc7 {[%clk 0:00:32]} 36. Qe5+ {[%clk 0:00:14]}  Qxe5 {[%clk 0:00:30]} 37. Rxe5 {[%clk 0:00:15]}  Kg8 {[%clk 0:00:27]} 38. Rxh5 {[%clk 0:00:15]}  Be7 {[%clk 0:00:23]} 39. Rf5 {[%clk 0:00:13]}  Ng5 {[%clk 0:00:20]} 40. Re5 {[%clk 0:00:12]}  Kf7 {[%clk 0:00:20]} 41. Re1 {[%clk 0:00:10]}  Bd6 {[%clk 0:00:18]} 42. Nc3 {[%clk 0:00:09]}  Kf6 {[%clk 0:00:17]} 43. Ne4+ {[%clk 0:00:08]}  Nxe4 {[%clk 0:00:16]} 44. Rxe4 {[%clk 0:00:09]}  Kf5 {[%clk 0:00:16]} 45. Re6 {[%clk 0:00:09]}  Bc5 {[%clk 0:00:15]} 46. Kg1 {[%clk 0:00:09]}  Bb4 {[%clk 0:00:14]} 47. Kf1 {[%clk 0:00:09]}  Bc5 {[%clk 0:00:13]} 48. Re8 {[%clk 0:00:09]}  Kf6 {[%clk 0:00:12]} 49. Kg1 {[%clk 0:00:08]}  Kf7 {[%clk 0:00:12]} 50. Re5 {[%clk 0:00:07]}  Kf6 {[%clk 0:00:11]} 51. Re4 {[%clk 0:00:08]}  Kf5 {[%clk 0:00:11]} 52. Rf4+ {[%clk 0:00:08]}  Ke5 {[%clk 0:00:10]} 53. Rxg4 {[%clk 0:00:08]}  Kxd5 {[%clk 0:00:11]} 54. Rf4 {[%clk 0:00:08]}  Ke5 {[%clk 0:00:08]} 55. Rxf3 {[%clk 0:00:08]}  Be7 {[%clk 0:00:08]} 56. Kg2 {[%clk 0:00:08]}  Bc5 {[%clk 0:00:02]} 57. h4 {[%clk 0:00:09]}  Ke6 {[%clk 0:00:01]} 58. h5 {[%clk 0:00:09]}  Bd4 {[%clk 0:00:02]} 59. h6 {[%clk 0:00:09]}  Ke7 {[%clk 0:00:01]} 60. g4 {[%clk 0:00:09]}  Ke8 {[%clk 0:00:01]} 61. g5 {[%clk 0:00:09]}  Ke7 {[%clk 0:00:02]} 62. g6 {[%clk 0:00:10]}  Ke8 {[%clk 0:00:03]} 63. g7 {[%clk 0:00:10]}  Ke7 {[%clk 0:00:00]} 64. g8=Q {[%clk 0:00:10]} 1-0


[Site "https://www.chess.com"]

[Event "Titled Tuesday Blitz June 20 Late 2023"]
[White "Levine, David"]
[Black "Miszler, Levente"]
[WhiteFideId "2011611"]
[BlackFideId "763276"]
[WhiteElo "2126"]
[BlackElo "2176"]
[Result "0-1"]
[Round "2"]
[TimeControl "180+2"]
[Date "2023.06.20"]
[WhiteClock "0:01:14"]
[BlackClock "0:01:39"]
[Board "184"]

1. d4 {[%clk 0:03:00]}  f5 {[%clk 0:02:57]} 2. g3 {[%clk 0:02:57]}  Nf6 {[%clk 0:02:56]} 3. Bg2 {[%clk 0:02:57]}  c5 {[%clk 0:02:57]} 4. d5 {[%clk 0:02:53]}  g6 {[%clk 0:02:46]} 5. c4 {[%clk 0:02:52]}  Bg7 {[%clk 0:02:45]} 6. Nc3 {[%clk 0:02:51]}  O-O {[%clk 0:02:45]} 7. Nf3 {[%clk 0:02:51]}  d6 {[%clk 0:02:38]} 8. O-O {[%clk 0:02:50]}  e5 {[%clk 0:02:38]} 9. dxe6 {[%clk 0:02:47]}  Bxe6 {[%clk 0:02:38]} 10. b3 {[%clk 0:02:32]}  Nc6 {[%clk 0:02:25]} 11. Ng5 {[%clk 0:02:21]}  Bc8 {[%clk 0:02:23]} 12. Bb2 {[%clk 0:02:12]}  h6 {[%clk 0:02:22]} 13. Nf3 {[%clk 0:02:11]}  Ne4 {[%clk 0:02:19]} 14. Qc1 {[%clk 0:02:06]}  Nd4 {[%clk 0:02:00]} 15. Nxd4 {[%clk 0:01:57]}  Nxc3 {[%clk 0:01:49]} 16. Bxc3 {[%clk 0:01:50]}  cxd4 {[%clk 0:01:49]} 17. Bb2 {[%clk 0:01:48]}  Qb6 {[%clk 0:01:46]} 18. Qd2 {[%clk 0:01:41]}  Re8 {[%clk 0:01:44]} 19. Rfd1 {[%clk 0:01:30]}  Bd7 {[%clk 0:01:39]} 20. Bxd4 {[%clk 0:01:28]}  Bxd4 {[%clk 0:01:38]} 21. Qxd4 {[%clk 0:01:28]}  Rxe2 {[%clk 0:01:39]} 22. Qxd6 {[%clk 0:01:14]}  Qxf2+ {[%clk 0:01:39]} 0-1


[Site "https://www.chess.com"]

[Event "Titled Tuesday Blitz June 20 Late 2023"]
[White "Ricaurte Lopez, Juan Carlos"]
[Black "Quiroga Jaquez, Angel Ivan"]
[WhiteFideId "3600327"]
[BlackFideId "5117801"]
[WhiteElo "2200"]
[BlackElo "2011"]
[Result "0-1"]
[Round "2"]
[TimeControl "180+2"]
[Date "2023.06.20"]
[WhiteClock "0:00:00"]
[BlackClock "0:01:51"]
[Board "185"]

1. e4 {[%clk 0:02:59]}  e5 {[%clk 0:02:59]} 2. d4 {[%clk 0:02:58]}  exd4 {[%clk 0:02:59]} 3. c3 {[%clk 0:02:58]}  d3 {[%clk 0:02:59]} 4. Bxd3 {[%clk 0:02:56]}  Nc6 {[%clk 0:02:59]} 5. f4 {[%clk 0:02:55]}  d6 {[%clk 0:02:59]} 6. Nf3 {[%clk 0:02:54]}  g6 {[%clk 0:02:59]} 7. O-O {[%clk 0:02:52]}  Bg7 {[%clk 0:02:59]} 8. a4 {[%clk 0:02:45]}  Nge7 {[%clk 0:02:59]} 9. Na3 {[%clk 0:02:43]}  O-O {[%clk 0:02:58]} 10. Kh1 {[%clk 0:02:42]}  f5 {[%clk 0:02:57]} 11. Ng5 {[%clk 0:02:28]}  Qe8 {[%clk 0:02:51]} 12. exf5 {[%clk 0:02:03]}  Bxf5 {[%clk 0:02:46]} 13. Re1 {[%clk 0:01:51]}  Qd7 {[%clk 0:02:34]} 14. Bc4+ {[%clk 0:01:35]}  d5 {[%clk 0:02:33]} 15. Ba2 {[%clk 0:01:31]}  h6 {[%clk 0:02:33]} 16. Nf3 {[%clk 0:01:29]}  Kh7 {[%clk 0:02:33]} 17. Nb5 {[%clk 0:01:26]}  Rad8 {[%clk 0:02:31]} 18. Nbd4 {[%clk 0:01:22]}  Be4 {[%clk 0:02:31]} 19. Nxc6 {[%clk 0:01:07]}  Nxc6 {[%clk 0:02:30]} 20. Be3 {[%clk 0:01:01]}  Kh8 {[%clk 0:02:24]} 21. Nd4 {[%clk 0:00:56]}  Qh3 {[%clk 0:02:20]} 22. Qd2 {[%clk 0:00:51]}  Nxd4 {[%clk 0:02:15]} 23. Bxd4 {[%clk 0:00:50]}  Qf5 {[%clk 0:02:12]} 24. Bxg7+ {[%clk 0:00:46]}  Kxg7 {[%clk 0:02:13]} 25. Rf1 {[%clk 0:00:44]}  c6 {[%clk 0:02:13]} 26. Kg1 {[%clk 0:00:43]}  Kh7 {[%clk 0:02:10]} 27. Rad1 {[%clk 0:00:39]}  Rfe8 {[%clk 0:02:09]} 28. c4 {[%clk 0:00:36]}  d4 {[%clk 0:02:08]} 29. b4 {[%clk 0:00:33]}  b6 {[%clk 0:02:07]} 30. h3 {[%clk 0:00:28]}  h5 {[%clk 0:02:06]} 31. Qf2 {[%clk 0:00:20]}  c5 {[%clk 0:02:05]} 32. b5 {[%clk 0:00:19]}  Qf6 {[%clk 0:02:04]} 33. Rd2 {[%clk 0:00:18]}  d3 {[%clk 0:02:03]} 34. Rfd1 {[%clk 0:00:05]}  Bf5 {[%clk 0:02:02]} 35. Bb1 {[%clk 0:00:03]}  Qc3 {[%clk 0:01:56]} 36. Qf3 {[%clk 0:00:01]}  Qxc4 {[%clk 0:01:51]} 37. g4 {[%clk 0:00:00]}  Qd4+ {[%clk 0:01:51]} 0-1


[Site "https://www.chess.com"]